Cogmind - Beta 15 @@@ ROGUE MODE // 2025.06.11 @ 14:44:01 Player: LightKnight Result: Destroyed by 9S-32L(j) with Overtuned Pulse Rifle Performance ------------- Evolutions (0) 0 Regions Visited (3) 600 Robots Destroyed (2) 10 Value Destroyed (89) 89 Prototype IDs (6) 120 Alien Tech Used (0) 0 Bonus (800) 800 TOTAL SCORE: 1619 Bonus ------- Registered with UFD 300 Met Optimus in HQ 500 Cogmind --------- Core Integrity 0/250 Matter 270/300 Energy 125/125 System Corruption 0% Temperature Cool (12) Movement Treading (160) Location -8/Scraptown Parts ------- > --- POWER (1) -------- Light Ion Engine > --- PROPULSION (2) --- Light Treads > --- UTILITY (2) ------ Structural Scanner Seismic Detector > --- WEAPON (2) ------- Small Laser Scythe > --- INVENTORY (5) ---- Small Storage Unit Advanced Visual Processing Unit System Restoration Module Vortex Trap Peak State ------------ > --- POWER ------------ Light Ion Engine > --- PROPULSION ------- Light Treads Light Treads > --- UTILITY ---------- Small Storage Unit Structural Scanner > --- WEAPON ----------- Bolt Gun Scythe > --- INVENTORY -------- Advanced Visual Processing Unit Seismic Detector System Restoration Module Small Laser Vortex Trap [Rating: 10] Favorites ----------- Power Light Ion Engine Engine Light Ion Engine Propulsion Light Treads Treads Light Treads Leg Aluminum Leg Utility Seismic Detector Device Seismic Detector Storage Small Storage Unit Weapon Small Laser Energy Gun Small Laser Ballistic Gun Light Assault Rifle Slashing Weapon Scythe Build | -11 -10 -10 -8 ------- Run | Yrd Mat Sub Scr Slots Evolved . | . . . . Power . | . . . . Propulsion . | . . . . Utility . | . . . . Weapon . | . . . . Parts Attached 8 | . 1 . 7 Power 1 | . . . 1 Engine 1 | . . . 1 Core . | . . . . Reactor . | . . . . Propulsion 2 | . . . 2 Treads 2 | . . . 2 Leg . | . . . . Wheel . | . . . . Hover . | . . . . Flight . | . . . . Utility 2 | . 1 . 1 Device 2 | . 1 . 1 Storage . | . . . . Processor . | . . . . Hackware . | . . . . Protection . | . . . . Artifact . | . . . . Weapon 3 | . . . 3 Energy Gun 1 | . . . 1 Energy Cannon . | . . . . Ballistic Gun 1 | . . . 1 Ballistic Cannon . | . . . . Launcher . | . . . . Special Weapon . | . . . . Impact Weapon . | . . . . Slashing Weapon 1 | . . . 1 Piercing Weapon . | . . . . Special Melee Weapon . | . . . . Unidentified Prototypes . | . . . . Parts Lost 6 | . . . 6 Power 1 | . . . 1 Propulsion 3 | . . . 3 Utility . | . . . . Weapon 2 | . . . 2 Highest Loss Streak 4 | . . . 4 To Critical Strikes . | . . . . Average Backups 4 | . 6 7 4 Power . | . 1 1 . Propulsion . | . 4 4 . Utility 2 | . . 1 2 Weapon . | . 1 1 . Tool/Special . | . . . . Unused Backups 15 | . 6 . 9 Power 2 | . 1 . 1 Propulsion 6 | . 2 . 4 Utility 3 | . 1 . 2 Weapon 4 | . 2 . 2 Tool/Special . | . . . . Average Slot Usage (%) 87 | . 91 100 86 Engine 13 | . 14 14 13 Treads 10 | . . . 10 Leg 8 | . 28 28 7 Device 21 | . 5 14 21 Storage 6 | . 14 14 6 Energy Gun 12 | . 14 14 12 Ballistic Gun 4 | . 14 14 3 Slashing Weapon 9 | . . . 10 Peak Build Rating 10 | . 7 7 10 Average Rating 7 | . 6 7 7 On Entrance 6 | 6 6 7 7 Naked Turns . | . . . . Heaviest Build 12 | 10 11 11 12 Greatest Support 40 | 20 20 20 40 Greatest Overweight (x) . | . . . . Average Overweight (x) . | . . . . Largest Inventory Capacity 8 | . 8 8 8 Average Capacity 6 | . 8 8 6 Most Carried 8 | . 7 8 8 Average Carried 5 | . 6 7 5 Final Capacity 8 | 8 8 8 5 Final Carried 8 | 6 7 8 4 Class Distribution -------------------- 100% | Mutant Dominant Class ---------------- Mutant | -10/Materials Mutant | -10/Subcaves Mutant | -8/Scraptown Resources | -11 -10 -10 -8 ----------- Run | Yrd Mat Sub Scr Matter Collected 256 | 193 . . 63 Remotely . | . . . . Salvage Created 118 | . . . 118 Parts 8 | . . . 8 Haulers Intercepted . | . . . . Recyclers Shooed . | . . . . Parts Field Recycled . | . . . . Retrieved Matter . | . . . . Parts Self-Destructed 11 | . . . 11 Prevented . | . . . . Kills | -11 -10 -10 -8 ------- Run | Yrd Mat Sub Scr Combat Hostiles Destroyed 2 | . . . 2 Melee 1 | . . . 1 Guns 1 | . . . 1 Classes Destroyed 2 | . . . 2 Explorer 1 | . . . 1 Scrapper 1 | . . . 1 Best Kill Streak 1 | . . . 1 Combat Bots Only 1 | . . . 1 Max Kills in Single Turn 1 | . . . 1 Gunslinging . | . . . . Exploded . | . . . . Melee 1 | . . . 1 Uniques/NPCs Destroyed . | . . . . Combat | -11 -10 -10 -8 -------- Run | Yrd Mat Sub Scr Hostile Shots Fired 98 | . . . 98 Missed 29 | . . . 29 Hits 69 | . . . 69 Projectile 69 | . . . 69 Critical Strikes 5 | . . . 5 Damage Taken 1052 | . . . 1052 Core 259 | . . . 259 Absorbed by Shields . | . . . . Core Remaining (%) 100 | 100 . . . Volleys Fired 7 | . . . 7 Largest 2 | . . . 2 Hottest 60 | . . . 60 Shots Fired 8 | . . . 8 Gun 8 | . . . 8 Cannon . | . . . . Launcher . | . . . . Special . | . . . . Kinetic 1 | . . . 1 Thermal 7 | . . . 7 Explosive . | . . . . Electromagnetic . | . . . . Robot Hit Streak 4 | . . . 4 Robot Miss Streak 1 | . . . 1 Penetration Max . | . . . . Secondary Targets . | . . . . Shots Hit Robots 8 | . . . 8 Core Hits 3 | . . . 3 Critical Kills . | . . . . Critical Parts Destroyed . | . . . . Critical Strikes . | . . . . Melee Attacks 34 | . . . 34 Impact . | . . . . Slashing 34 | . . . 34 Piercing . | . . . . Sneak Attacks . | . . . . Combat Hostiles . | . . . . Follow-up Attacks . | . . . . Damage Inflicted 128 | . . . 128 Guns 66 | . . . 66 Cannons . | . . . . Explosions . | . . . . Melee 62 | . . . 62 Ramming . | . . . . Kinetic 10 | . . . 10 Thermal 56 | . . . 56 Explosive . | . . . . Electromagnetic . | . . . . Impact . | . . . . Slashing 62 | . . . 62 Piercing . | . . . . Highest Corruption . | . . . . Average Corruption . | . . . . Corruption Purged . | . . . . Corruption Blocked . | . . . . Overload Shots . | . . . . Overflow Damage . | . . . . Projectiles . | . . . . Explosions . | . . . . Melee . | . . . . Knockbacks . | . . . . Impact . | . . . . Kinetic . | . . . . Secondary . | . . . . Self-Inflicted Damage . | . . . . Shots . | . . . . Rammed . | . . . . Targets Rammed . | . . . . Kicked . | . . . . Crushed . | . . . . Highest Temperature 23 | . . . 23 Average Temperature 11 | . . . 11 Received Heat Transfer 508 | . . . 508 Siege Activations . | . . . . Martial Activations . | . . . . Shielding Activations . | . . . . Robots Disrupted . | . . . . Combat Hostiles . | . . . . Robots Corrupted . | . . . . Combat Hostiles . | . . . . Parts Fried . | . . . . Impact Corruptions . | . . . . Robots Melted . | . . . . Combat Hostiles . | . . . . Parts Melted . | . . . . Heat Transferred 125 | . . . 125 Parts Sabotaged . | . . . . Parts Stolen . | . . . . Parts Stripped . | . . . . Power Chain Reactions . | . . . . Alert | -11 -10 -10 -8 ------- Run | Yrd Mat Sub Scr Maximum Alert Level . | . . . . Low Security (%) 100 | . 100 . . Level 1 . | . . . . Level 2 . | . . . . Level 3 . | . . . . Level 4 . | . . . . Level 5 . | . . . . High Security . | . . . . Max Security . | . . . . Peak Influence . | . . . . Initial . | . . . . Average . | . . . . Influence Increases . | . . . . Influence Decreases . | . . . . Squads Dispatched 1 | . 1 . . Investigation 1 | . 1 . . Extermination . | . . . . Reinforcement . | . . . . Assault . | . . . . Garrison . | . . . . Intercept . | . . . . Searches Triggered . | . . . . Construction Impeded . | . . . . Haulers Reinforced . | . . . . Active Scanning Responses . | . . . . Cargo Convoy Interrupts . | . . . . Stealth | -11 -10 -10 -8 --------- Run | Yrd Mat Sub Scr Distress Signals . | . . . . Communications Jammed . | . . . . Distress Signals . | . . . . Times Spotted 19 | . . . 19 Peak Tracking Total 7 | . . . 7 Tactical Retreats 4 | . . . 4 Traps | -11 -10 -10 -8 ------- Run | Yrd Mat Sub Scr Traps Triggered . | . . . . Indirectly . | . . . . Trap Hack Attempts . | . . . . Triggered . | . . . . Disarmed . | . . . . Reprogrammed . | . . . . Reused . | . . . . Traps Extracted . | . . . . Installed . | . . . . Triggered . | . . . . Most Traps Carried 1 | . . 1 1 Machines | -11 -10 -10 -8 ---------- Run | Yrd Mat Sub Scr Machines Disabled 1 | . . . 1 Max in Single Turn 1 | . . . 1 Machines Repaired . | . . . . Machines Dismantled . | . . . . Machines Sabotaged . | . . . . Overloaded Fab Kills . | . . . . Hacking | -11 -10 -10 -8 --------- Run | Yrd Mat Sub Scr Machines Accessed 4 | . 1 . 3 Terminals 1 | . 1 . . Fabricators . | . . . . Repair Stations . | . . . . Recycling Units . | . . . . Scanalyzers . | . . . . Garrison Access . | . . . . Total Hacks 7 | . 2 . 5 Successful 6 | . 1 . 5 Failed 1 | . 1 . . Catastrophic . | . . . . Database Lockouts . | . . . . Manual . | . . . . Terminals 2 | . 2 . . Fabricators . | . . . . Repair Stations . | . . . . Recycling Units . | . . . . Scanalyzers . | . . . . Garrison Access . | . . . . Terminal Hacks 6 | . 1 . 5 Record 4 | . . . 4 Locate Traps 1 | . 1 . . Proto ID Catalog 1 | . . . 1 Fabricator Hacks . | . . . . Repair Station Hacks . | . . . . Recycling Unit Hacks . | . . . . Scanalyzer . | . . . . Garrison Access Hacks . | . . . . Unauthorized Hacks . | . . . . Terminals . | . . . . Fabricators . | . . . . Repair Stations . | . . . . Recycling Units . | . . . . Scanalyzers . | . . . . Garrison Access . | . . . . Data Cores Recovered . | . . . . Used . | . . . . Hacking Detections 1 | . 1 . . Full Trace Events . | . . . . Feedback Events . | . . . . Feedback Blocked . | . . . . Robot Schematics Acquired . | . . . . Robots Built . | . . . . Authchips . | . . . . Time . | . . . . Total Robot Build Rating . | . . . . Part Schematics Acquired . | . . . . Parts Built . | . . . . Authchips . | . . . . Time . | . . . . Total Part Build Rating . | . . . . Parts Repaired . | . . . . Time . | . . . . Parts Recycled . | . . . . Recycled Matter . | . . . . Retrieved Matter . | . . . . Retrieved Components . | . . . . Parts Scanalyzed . | . . . . Part Schematics Acquired . | . . . . Parts Damaged . | . . . . Bothacking | -11 -10 -10 -8 ------------ Run | Yrd Mat Sub Scr Used RIF Installer . | . . . . Robots Hacked . | . . . . Non-combat . | . . . . Combat . | . . . . Robot Hacks Applied . | . . . . Relay Couplers Released . | . . . . Fabnet Peak Effective % . | . . . . Robots Rewired . | . . . . Allies Hacked . | . . . . Hacks Repelled . | . . . . Allies | -11 -10 -10 -8 -------- Run | Yrd Mat Sub Scr Total Allies . | . . . . Largest Group . | . . . . Highest-Rated Group . | . . . . Highest-Rated Ally . | . . . . Total Orders . | . . . . Ally Attacks . | . . . . Total Damage . | . . . . Kills . | . . . . Allies Corrupted . | . . . . Allies Melted 71 | . . . 71 Intel | -11 -10 -10 -8 ------- Run | Yrd Mat Sub Scr Active Infowar (turns) 7719 | . 53 220 7446 Structural 5371 | . . . 5371 Seismic 6441 | . 53 220 6168 Robot Analysis Total . | . . . . Derelict Logs Recovered 1 | . . 1 . Drone Launches . | . . . . Drone Recoveries . | . . . . Exploration | -11 -10 -10 -8 ------------- Run | Yrd Mat Sub Scr Turns Passed 7779 | . 113 220 7446 Spaces Moved 2017 | 1 93 183 1740 Core . | . . . . Treads 175 | . . . 175 Legs 1842 | 1 93 183 1565 Wheels . | . . . . Hover . | . . . . Flight . | . . . . Fastest Speed 120 | 120 120 120 120 Average Speed 123 | 120 120 120 124 Slowest Speed 160 | 120 120 120 160 Overloaded Moves . | . . . . Propulsion Burnouts . | . . . . Robots Hopped . | . . . . Potential Cave-ins 4 | . . . 4 Cave-ins Triggered 1 | . . . 1 Exploration Rate (%) 30 | 1 22 13 87 Regions Visited 3 Branch Regions 2 Pre-discovered Areas 1 | . . . 1 Known Exits Taken . | . . . . Unknown Exits Taken 3 | 1 1 1 . Scrap Searched 6 | . . . 6 Spaces Dug 14 | . . . 14 Terrain Destroyed 14 | . . . 14 Melee 14 | . . . 14 Projectile . | . . . . AOE . | . . . . Terrain Rammed . | . . . . Walls Destroyed . | . . . . Machines Disabled . | . . . . Actions | -11 -10 -10 -8 --------- Run | Yrd Mat Sub Scr Total 7246 | . 94 183 6969 Wait 5169 | . . . 5169 Move 2013 | . 92 182 1739 Hop . | . . . . Pick Up 6 | . 1 1 4 Fast Attach 2 | . 1 . 1 Attach 6 | . . . 6 Detach 2 | . . . 2 Swap 2 | . . . 2 Drop 4 | . . . 4 Fire 7 | . . . 7 Melee 34 | . . . 34 Ram . | . . . . Kick . | . . . . Crush . | . . . . Escape Stasis 1 | . . . 1 Rewire . | . . . . Trap . | . . . . Miscellaneous . | . . . . Route ------- -11/Scrapyard -10/Materials (discovered 2 exits: [*Mat] / [*Sub]) -10/Subcaves -8/Scraptown (discovered 2 exits: *Fac x2) History --------- Turn | Location | Event 1 | -11/Scrapyard | Discovered new exit (range 0) 1 | -11/Scrapyard | Entered Materials 2 | -10/Materials | Met a group of wandering Federalists 102 | -10/Materials | Discovered new exit (range 16) 111 | -10/Materials | Discovered new exit (range 5) 114 | -10/Materials | Entered Subcaves 115 | -10/Subcaves | Continued accompanying wandering Federalists (1) 119 | -10/Subcaves | Learned 2 Materials zone layouts 184 | -10/Subcaves | Shifting Twisted Machinery released Piercing Trap 193 | -10/Subcaves | Shifting Twisted Machinery released Piercing Trap 310 | -10/Subcaves | Build established: Mutant 331 | -10/Subcaves | Wandering Federalist uncovered a shortcut to Scraptown 334 | -10/Subcaves | Entered Scraptown 464 | -8/Scraptown | Visited Shadow of the Wyrm 483 | -8/Scraptown | Visited SPCMW 512 | -8/Scraptown | Learned location of Extension (-4) 773 | -8/Scraptown | Heard Great Nut preacher, LISTEN AND RECITE! 810 | -8/Scraptown | Discovered new exit (range 11) 899 | -8/Scraptown | Visited Bundlers 966 | -8/Scraptown | Visited Cyclists 987 | -8/Scraptown | Visited Spacefarers 1033 | -8/Scraptown | Visited Comm Corps 1061 | -8/Scraptown | Visited TADAMA 1083 | -8/Scraptown | Visited UFD Registry 1083 | -8/Scraptown | Registered with UFD as "Matrixbot" 1109 | -8/Scraptown | Visited Chapter 10 1131 | -8/Scraptown | Visited Science Guys 1321 | -8/Scraptown | Visited Junk Cannon Lab 1349 | -8/Scraptown | Visited Scrap Suit Storage 1365 | -8/Scraptown | Visited A0-MCA Data Center 1376 | -8/Scraptown | Visited Modified Component R&D 1423 | -8/Scraptown | Visited Abandonware Association 1436 | -8/Scraptown | Learned abandonware demo "TRNCOAT.EXE" 1466 | -8/Scraptown | Visited LU-1G1's Boring Crew 1537 | -8/Scraptown | Visited Science Testing Area 1637 | -8/Scraptown | Entered Cyclist Reading Room 2150 | -8/Scraptown | Met Optimus 2150 | -8/Scraptown | Accepted into 0bPrime 2204 | -8/Scraptown | Civil war broke out across Scraptown 2228 | -8/Scraptown | Core integrity fell below 50% 2248 | -8/Scraptown | Core integrity fell below 20% 2269 | -8/Scraptown | Lost 4 parts (1p2n1w) 2278 | -8/Scraptown | Identified exit to Factory 2457 | -8/Scraptown | Optimus destroyed in the chaos of civil war 2511 | -8/Scraptown | Lost 18 allies 2568 | -8/Scraptown | Lost 3 allies 2850 | -8/Scraptown | Lost 3 allies 3238 | -8/Scraptown | Lost 9 allies 3372 | -8/Scraptown | Lost 9 allies 3409 | -8/Scraptown | Lost 3 allies 3586 | -8/Scraptown | Lost 14 allies 3746 | -8/Scraptown | Lost 5 allies 3848 | -8/Scraptown | Lost 5 allies 3976 | -8/Scraptown | Lost 5 allies 4115 | -8/Scraptown | Lost 7 allies 4318 | -8/Scraptown | Lost 3 allies 4451 | -8/Scraptown | Lost 7 allies 4673 | -8/Scraptown | Lost 4 allies 4845 | -8/Scraptown | Lost 14 allies 5273 | -8/Scraptown | Lost 6 allies 5708 | -8/Scraptown | Lost 4 allies 5976 | -8/Scraptown | Lost 15 allies 6196 | -8/Scraptown | Lost 4 allies 6423 | -8/Scraptown | Lost 7 allies 6570 | -8/Scraptown | Lost 5 allies 6691 | -8/Scraptown | Lost 6 allies 6861 | -8/Scraptown | Lost 5 allies 7034 | -8/Scraptown | Lost 9 allies 7324 | -8/Scraptown | Lost 3 allies 7428 | -8/Scraptown | Lost 9 allies 7474 | -8/Scraptown | Lost 4 allies 7548 | -8/Scraptown | Lost 4 allies 7640 | -8/Scraptown | Lost 8 allies 7733 | -8/Scraptown | Lost 7 allies 7768 | -8/Scraptown | Crushed by falling debris 7780 | -8/Scraptown | Destroyed by 9S-32L(j) with Overtuned Pulse Rifle Last Messages --------------- 02364_ Critical hit (Burn: +50). 02365_ Lgt. Treads destroyed. 02373_ PI-0MO(j) cannibalizes Ovr. Pulse Rifle to repair Ovr. Pulse Rifle. 02375_ PI-0MO(j) cannibalizes Scrap Suit to repair Mak. Microdissipator Network. 02375_ Machine disabled. 02376_ Bolt Gun destroyed. 02380_ The unstable cave ceiling collapses. 02380_ PI-0MO(j) crushed by falling debris. 02380_ PI-0MO(j) system corrupted by crushing effect. 02411_ The unstable cave ceiling collapses. 02457_ ANNOUNCEMENT: The traitor Optimus has been dealt with. Put down any remaining collaborators. 02701_ 0X-E82(j): "I'll admit this is sort of exciting." 02725_ 2A-M9Y(j): "Down with Optimus!" 02773_ JM-23S(j): "0bPrime is tearing us apart, don't fall for it!" 05377_ D8-01C(E): "All who oppose us are siding with MC!" 06001_ The unstable cave ceiling collapses. 07768_ Crushed by falling debris. 07778_ 8G-DHL(j) destroyed. Map ----- +----------------------------------------------------+ | ?????????## #" "#?? | | ?????????## #" ### | | ?????????## #############?########### #" | | ????????#### #########???????????????# # | | ???????##### ########################## ### ### | | ?#"""?"""""" """""""##"" "" """" " # | | ?#" """""" " "##" "%[" # | | ?#" """"" ] "## [|[ # | | ?#" " " [ "##""| # | | ??""" " ! "##"%* # | | ???""""" " " ! [ "##"" # ####### | | ????"""""""" " ! = "####=## # #?????? | | ?????####### " ! [ "## !# # ####### | | ?????####### " "## [ !# # # """" | | ???""""""""" """" ""##][==# !=! " " | | ?#"""""""" " #### ####! #" "!"%" # # | | ??"" " " #### #### *!!#""" """ # # """ | | ??"""" " """" ""################# # """ | | ??""" " "##?????????????## # """ | | ???"""""" " " "" "##???############ ! # """ | | ??""" " " "" "##???############==%[ # """ | | ???"""" " " "##??###X"X"#""" #%*%* # | | ???""" " " ""##??### "# #[!=! | | ???""""" " " """""######" "# #%! # """" | | ???""" " """""""######" ## [ #[=%[ ####### | | ???"" " " """""""####@#" # %![ ####### | | ???""""" " ###########j####### *# == [####### | | ??""" " ############j # [%#!! !=%!! =% | | ???""""" " #"""X""#####= # ==!== =*[[ ! | | ##""" "" " #" "##?##; # #%!%!*= | | ##"" #" "###### #"X" #%!=%! | | ##"""" " #" "##### #####[##### != | | ??"" " #" "#### ######![== %!!! % | | ?#"" """"""" #" "##########!%[!!%!%/[ | | ?### ####### #"" """## #####= [%&!!!* | | ?### ####### %=!%= !===%##!=%# ######## | | ??????###### *!%!! ![%*!####!* ### | | ??"" """"""" #"" """##"" """###!=%### """""" ## | | ??" " " "" #" "##"" "###*!*### "" "" ## | | ?#" " " "" #"" "##"" "###=*!### " " ## | | ?#" " "" #"" "##"" "###%! ### " " ## | | ?#" "" #"" " "##"%[ "###!! ### " " ## | | ?#" #"""" "##"! "### ### " " ## | | ?#"" " #""""""##""""""### [=### "" "" ## | | ?#""" "" ##################[%=### """""" ?? | | ??"" "" ################## !!#### ??? | | ??""" "" """""""#?#"""#??## ##########????? | | ??"""""" """ " "#?#" "#??## #???#####????? | | ???##### ### " """ "#?# #??## = ##????????????? | | ?????? ?## " """ "#?# ##### *%##????????????? | +----------------------------------------------------+ Best States ------------- Heat Dissipation 25 Energy Generation 10 Energy Capacity 125 Matter Stores 300 Matter Capacity 300 Sight Range 16 Terrain Scan Density 10 Evasion (%) 55 Recoil Reduction 2 Item Schematics ----------------- None Robot Schematics ------------------ None Fabricated ------------ Nothing Repaired ---------- Nothing Alien Tech Used ----------------- None Achievements -------------- None Challenges ------------ None Game ------ Seed PiercingPhaseTurbovents Manual? 0 Play Time 00:42:35 Cumulative 314.2 hours Start 2025.06.11 @ 13:55:45 End 2025.06.11 @ 14:44:01 Sessions 1 Manual Loads 0 Difficulty Rogue Special Mode None Game No. 223 Rogue 223 Adventurer 0 Explorer 0 Win Type - Total 24 Types 18/0/4/2/0/0/0/0/0/0 Lore% 87 Gallery% 74 Achievement% 64 Wizard Run 0 Options --------- Layout 0 ASCII 1 Keyboard 1 Movement Arrows Keybinds 0 Fullscreen 2 Font 18/Terminus Map View 76x50 Zoom Use 0% Tactical HUD 1 Map Filters NONE Filters NONE Steam 1 RUN: 39e02d67-3ef5-4eef-a0f0-128eb1b53acb